bitfinex/quotes_ETHUSD_20250815
["timestamp","ask_amount","ask_price","bid_price","bid_amount"]
[1755275462206,0.002,4413.9,4413.4,2.2658268]
[1755275462408,0.002,4413.9,4413.2,2.26591843]
[1755275462644,0.002,4413.9,4413.8,2.26562145]
[1755275466099,0.002,4413.9,4413.7,2.26567279]
[1755275466258,0.002,4413.9,4413.8,2.26562145]
[1755275466679,4.81431863,4414.6,4413.9,2.26554208]
[1755275466859,4.81431863,4414.6,4413.0,0.4538]
[1755275466860,3.14978,4414.6,4413.3,3.766]
[1755275467055,0.48486382,4414.5,4413.4,0.4606]
[1755275467288,0.48486382,4414.4,4414.3,2.26536483]
[1755275467599,0.48486382,4414.4,4414.2,2.26537575]
[1755275467773,0.48486382,4414.3,4413.9,2.26555399]
[1755275467977,2.75216382,4414.2,4413.3,3.0]
[1755275468187,0.48486382,4414.1,4414.0,2.2655188]
[1755275468500,0.2285,4414.6,4414.0,2.2655188]
[1755275468702,2.26541224,4414.3,4413.4,3.764]
[1755275468904,2.75058457,4414.2,4413.4,2.26578975]
[1755275469073,2.2655188,4414.0,4413.2,2.26591626]
[1755275469275,2.7524678,4413.9,4413.3,2.26583735]
[1755275469498,2.2673,4413.9,4413.4,2.26578067]
[1755275469696,2.2673,4413.8,4413.0,2.26598406]
[1755275469875,2.2673,4413.8,4412.7,3.4606]
[1755275470062,2.2673,4413.8,4411.9,2.26659709]
[1755275470261,2.2673,4413.8,4412.0,3.764]
[1755275470262,0.90794297,4413.7,4412.0,3.764]
[1755275470487,0.48534297,4413.6,4412.2,3.0]
[1755275470758,0.48509062,4414.0,4413.9,2.26557013]
[1755275470959,0.2285,4414.6,4413.9,0.4606]
[1755275471186,0.2285,4414.6,4413.9,0.5742]
[1755275471390,0.2285,4414.6,4414.5,0.1136]
[1755275471771,2.4958,4414.6,4414.5,0.1136]
[1755275472996,2.4958,4414.6,4413.4,3.763]
[1755275472997,4.76101089,4414.6,4413.7,2.26566224]
[1755275473203,3.032,4414.6,4413.9,0.1136]
[1755275473401,3.762,4414.5,4413.4,5.26579645]
[1755275473601,0.2285,4414.6,4414.4,2.26531351]
[1755275473807,0.2285,4414.6,4414.5,2.7258622]
[1755275474007,0.003,4414.7,4414.6,2.26521089]
[1755275474212,1e-08,4415.6,4415.5,2.26474917]
[1755275474367,0.60368,4417.2,4415.5,2.26474917]
[1755275474368,0.003,4417.2,4416.6,2.26418511]
[1755275474893,0.003,4417.2,4416.6,0.1136]
[1755275475267,0.003,4417.2,4414.1,2.3178]
[1755275475268,2.26446834,4416.1,4415.9,0.1136]
[1755275475577,2.6929,4416.0,4415.2,0.1136]
[1755275475780,0.1136,4415.8,4415.2,0.1136]
[1755275476183,2.26465609,4415.7,4415.2,0.1136]
[1755275476398,2.2673,4415.7,4415.2,0.1136]
[1755275476600,0.1136,4415.8,4415.2,0.1136]
[1755275477385,0.1136,4415.8,4414.4,0.2285]
[1755275477386,2.6929,4415.7,4414.4,0.2285]
[1755275477696,2.26485176,4415.3,4414.7,0.1136]
[1755275478010,0.1136,4415.4,4414.7,0.1136]
[1755275478228,0.1136,4415.4,4414.8,2.26510827]
[1755275478229,0.002,4415.0,4414.8,2.26510827]
[1755275478372,0.002,4415.0,4414.7,0.1136]
[1755275478373,0.002,4415.0,4414.9,2.72565696]
[1755275478786,0.002,4415.0,4414.9,0.1136]
[1755275479530,0.002,4415.0,4414.1,0.680525]
[1755275479531,2.2693,4415.0,4414.1,0.680525]
[1755275479733,2.2693,4415.0,4414.5,0.1136]
[1755275480030,0.002,4415.0,4414.6,0.4606]
[1755275480234,0.002,4415.0,4414.9,2.26505696]
[1755275480550,0.002,4415.0,4414.9,23.24478796]
[1755275480693,0.002,4415.0,4414.9,23.63833396]
[1755275480895,0.002,4415.9,4415.0,3.0]
[1755275481110,0.002,4415.9,4415.8,2.26459531]
[1755275481323,0.002,4415.9,4415.8,5.15659531]
[1755275481521,2.26688316,4417.2,4415.9,10.756587]
[1755275481522,0.003,4417.2,4415.9,10.756587]
[1755275481749,0.1128,4418.5,4416.8,3.0]
[1755275481955,2.2673,4419.1,4417.0,3.0]
[1755275482122,0.1128,4418.2,4416.6,3.0]
[1755275482319,3.8708,4419.0,4418.4,0.1128]
[1755275482517,2.2673,4418.9,4418.3,0.1128]
[1755275482736,2.2673,4418.9,4417.3,2.26378176]
[1755275482937,2.26342669,4418.1,4417.6,0.1128]
[1755275483236,3.756,4418.1,4417.6,0.1128]
[1755275483561,0.1128,4417.7,4417.0,0.1128]
[1755275483708,2.2673,4418.0,4417.0,2.26394695]
[1755275483912,3.756,4418.1,4417.5,0.1128]
[1755275483913,3.8688,4418.1,4417.5,0.1128]
[1755275484114,0.1128,4418.1,4417.5,0.1128]
[1755275484621,0.1128,4418.1,4417.2,0.4606]
[1755275484622,2.26249095,4420.0,4417.0,2.26398007]
[1755275484825,0.1128,4418.7,4418.0,0.1128]
[1755275485034,8.71183678,4419.1,4417.1,3.0]
[1755275485035,6.4489,4419.1,4417.4,1.140608]
[1755275485214,0.1128,4418.9,4418.3,0.1128]
[1755275485415,0.1128,4418.9,4418.5,2.26320056]
[1755275485730,0.11069648,4419.5,4418.6,0.4606]
[1755275485927,0.003,4419.7,4419.4,0.1128]
[1755275486153,0.003,4419.7,4419.6,2.2626482]
[1755275486510,0.003,4419.7,4419.6,2.7232482]
[1755275487053,0.003,4419.7,4419.6,5.0410482]
[1755275487255,1e-08,4419.7,4419.6,8.7960482]
[1755275487418,1e-08,4419.7,4419.6,2.2626482]
[1755275487617,1e-08,4419.7,4419.6,2.7232482]
[1755275487830,1e-08,4419.7,4419.6,5.0410482]
[1755275488033,1e-08,4419.7,4417.9,2.26351886]
[1755275488244,2.2673,4419.6,4419.2,2.26283883]
[1755275488597,2.2673,4419.6,4417.7,2.3178]
[1755275488598,6.0213,4419.5,4417.7,0.4606]
[1755275488900,3.754,4419.4,4417.7,0.4606]
[1755275489190,2.2628018,4419.3,4417.9,2.26350263]
[1755275489388,1e-08,4419.7,4417.7,0.4606]
[1755275489389,1e-08,4419.7,4417.8,3.753]
[1755275489571,1e-08,4419.7,4419.5,2.26267326]
[1755275489758,1e-08,4419.7,4418.3,0.55]
[1755275489961,1e-08,4419.7,4419.6,2.2626482]
[1755275490347,1e-08,4419.7,4419.6,8.0410482]
[1755275490657,1e-08,4419.7,4419.6,5.7232482]
[1755275491202,1e-08,4419.7,4419.6,0.4606]
[1755275491490,1e-08,4419.7,4419.6,2.7232482]
[1755275492104,1e-08,4419.7,4419.6,2.2626482]
[1755275492388,1e-08,4419.7,4419.6,8.0410482]
[1755275492750,0.002,4420.4,4419.8,0.55]
[1755275492986,0.002,4420.4,4420.3,2.26228988]
[1755275493347,0.002,4420.4,4420.3,5.04068988]
[1755275493553,0.002,4420.4,4420.3,8.04068988]
[1755275494075,0.002,4420.4,4420.3,5.72288988]
[1755275494400,0.002,4420.4,4420.0,0.41]
[1755275494694,0.002,4420.2,4420.0,0.41]
[1755275495454,4.52969225,4420.1,4420.0,0.41]
[1755275495697,4.95529225,4420.1,4420.0,0.41]
[1755275495879,4.52969225,4420.1,4420.0,0.41]
[1755275496367,4.95529225,4420.1,4420.0,0.41]
[1755275496574,2.3801,4420.1,4420.0,0.41]
[1755275497094,0.002,4420.2,4420.0,0.41]
[1755275497338,5.10279225,4420.1,4420.0,0.41]
[1755275497595,2.8404,4420.1,4420.0,0.41]
[1755275497901,5.21559225,4420.1,4420.0,0.41]
[1755275498458,5.21559225,4420.1,4418.6,0.1128]
[1755275498459,0.55,4419.9,4418.6,0.1128]
[1755275498696,0.1128,4418.7,4417.6,0.1128]
[1755275498905,3.0,4419.6,4417.0,0.4597]
[1755275498906,2.26321564,4418.5,4417.4,2.26373087]
[1755275499086,3.749,4418.4,4417.0,0.4597]
[1755275499393,3.8618,4418.5,4417.9,2.2634972]
[1755275499556,3.8618,4418.5,4417.7,0.1128]
[1755275499758,0.0628,4418.5,4417.7,0.1128]
[1755275500001,0.0628,4418.5,4417.8,2.2635701]
[1755275500300,0.0628,4418.5,4417.7,0.1128]
[1755275500684,3.749,4418.8,4418.4,0.1128]
[1755275500998,2.5276,4419.1,4418.4,0.1128]
[1755275501294,2.4148,4418.8,4418.4,0.1128]
[1755275501510,3.749,4419.0,4417.5,2.26367873]
[1755275501798,2.26331332,4418.4,4417.5,2.26371236]
[1755275501985,2.8404,4418.9,4416.8,0.6801]
[1755275502184,3.749,4418.8,4416.9,0.4597]
[1755275502501,2.4148,4418.9,4417.9,2.26349532]
[1755275502502,0.1128,4418.3,4417.9,2.26349532]
[1755275502701,3.749,4418.8,4418.2,2.37615201]
[1755275502997,3.749,4418.8,4416.8,0.6801]
[1755275502998,2.26362228,4417.7,4417.2,0.1128]
[1755275503158,0.1128,4417.4,4416.1,2.26439486]
[1755275503362,2.26434217,4416.3,4415.7,0.680244]
[1755275503559,0.1136,4416.2,4415.7,0.1136]
[1755275503793,0.1136,4416.2,4415.1,0.001]
[1755275504060,3.749,4416.3,4415.5,2.26469962]
[1755275504265,6.1638,4416.3,4415.1,0.001]
[1755275504459,0.59796245,4417.0,4415.8,2.26455339]
[1755275504460,3.749,4416.4,4415.8,2.26455339]
[1755275504696,6.01333002,4416.4,4415.9,0.1136]
[1755275505009,0.1136,4416.5,4415.7,2.37823757]
[1755275505161,3.01276245,4417.0,4415.1,0.001]
[1755275505162,0.1136,4416.6,4416.3,2.26429034]
[1755275505502,0.1128,4417.3,4416.6,2.26416964]
[1755275505662,2.3766308,4417.3,4416.5,2.3778352]
[1755275505862,0.1128,4417.3,4416.6,2.26418458]
[1755275506208,3.8618,4417.7,4417.4,2.26372675]
[1755275506504,3.748,4418.1,4417.4,0.1128]
[1755275506865,4.67826763,4418.0,4417.4,0.1128]
[1755275507159,2.4148,4418.0,4417.4,0.1128]
[1755275507362,4.67827756,4418.0,4417.4,0.1128]
[1755275507683,2.4148,4418.0,4417.4,0.1128]
[1755275507904,2.4148,4418.0,4417.5,2.26372382]
[1755275508077,0.1128,4418.2,4417.6,0.4597]
[1755275508399,2.26290421,4419.1,4417.6,0.4597]
[1755275508699,0.1128,4418.8,4418.3,2.26330937]
[1755275508999,0.1128,4418.8,4418.3,0.1128]
[1755275509209,6.1638,4418.7,4418.3,0.1128]
[1755275509374,3.749,4418.7,4418.3,0.1128]
[1755275509563,0.1128,4418.8,4418.2,2.26334173]
[1755275509763,5.435,4419.3,4417.8,2.2635701]
[1755275509993,5.435,4419.3,4418.9,2.2629779]
[1755275510193,0.1128,4419.9,4419.0,0.5725]
[1755275510506,3.8608,4419.9,4419.4,2.2627485]
[1755275510714,3.8608,4419.9,4419.3,0.1128]
[1755275511015,3.8608,4420.1,4419.3,0.1128]
[1755275511306,3.748,4420.1,4419.7,2.2625797]
[1755275511465,6.1628,4420.1,4419.5,2.26268643]
[1755275511668,6.1628,4420.1,4419.2,2.26283648]
[1755275511669,3.748,4420.0,4419.6,2.26260966]
[1755275511898,3.748,4420.0,4419.5,0.1128]
[1755275512107,0.1148,4420.2,4419.5,0.1128]
[1755275512108,0.1148,4420.2,4419.5,2.37549019]
[1755275512293,3.748,4420.1,4419.5,2.37549019]
[1755275512470,3.748,4420.1,4419.9,2.26248073]
[1755275512809,3.748,4420.1,4419.8,0.1128]
[1755275513392,2.4148,4420.0,4419.0,0.4597]
[1755275513616,3.748,4420.1,4419.5,0.1128]
[1755275513962,0.002,4420.2,4419.5,0.1128]
[1755275514169,3.747,4420.1,4419.5,0.1128]
[1755275514400,0.1128,4420.0,4419.5,0.1128]
[1755275514910,2.4148,4419.9,4419.5,0.1128]
[1755275515122,2.4148,4419.8,4418.4,0.679809]
[1755275515410,2.26290571,4419.1,4418.3,2.26330312]
[1755275515583,2.26300663,4418.9,4417.6,0.679929]
[1755275515914,2.4148,4419.2,4417.7,0.4597]
[1755275516138,3.747,4418.9,4417.8,2.2635701]
[1755275516283,3.747,4418.9,4417.7,3.56926221]
[1755275516284,2.4148,4419.9,4418.8,2.26303667]
[1755275516472,2.26264765,4419.7,4418.8,2.26303667]
[1755275516677,3.746,4419.6,4418.9,2.26297741]
[1755275516905,3.746,4419.6,4419.0,2.26293885]
[1755275517073,3.746,4419.6,4418.4,0.4597]
[1755275517274,2.26260272,4419.7,4418.8,2.26300696]
[1755275517476,3.746,4419.6,4418.4,0.4597]
[1755275517984,3.746,4419.5,4418.4,0.4597]
[1755275518187,3.746,4419.5,4418.5,2.26321149]
[1755275518414,3.746,4419.5,4418.5,2.26320682]
[1755275518601,3.746,4419.5,4418.7,2.26305865]
[1755275518796,2.4148,4419.9,4418.0,2.3479]
[1755275518797,2.4148,4419.9,4418.4,0.4597]
[1755275518981,3.746,4419.4,4418.9,2.26296362]
[1755275519182,3.746,4419.4,4419.0,2.26295158]
[1755275519379,3.746,4419.4,4418.4,0.4597]
[1755275519580,2.26284458,4419.3,4418.4,2.26322117]
[1755275519910,6.1608,4419.4,4417.9,5.26351886]
[1755275520212,3.746,4419.4,4418.8,2.26302468]
[1755275520512,6.1608,4419.4,4417.7,0.6799]
[1755275520714,4.6776018,4419.3,4417.6,0.4597]
[1755275521027,4.6776018,4419.3,4418.2,2.26331736]
[1755275521028,2.4148,4419.3,4418.2,2.26331736]
[1755275521317,3.746,4419.2,4417.6,0.4597]
[1755275521476,2.26296906,4419.0,4418.2,2.26335908]
[1755275521819,2.4148,4419.6,4419.1,2.26290204]
[1755275521975,3.745,4419.9,4419.3,2.26275953]
[1755275522180,3.745,4419.9,4419.2,2.26284076]
[1755275522415,3.745,4419.9,4419.3,2.26280169]
[1755275522615,2.26264317,4419.7,4419.0,2.26294666]
[1755275522816,3.745,4419.9,4419.7,2.26259287]
[1755275523003,3.745,4419.9,4418.9,2.26300663]
[1755275523004,3.745,4419.9,4418.8,0.4597]
[1755275523204,3.745,4419.9,4419.3,2.2628016]
[1755275523444,3.745,4419.9,4419.4,2.26273571]
[1755275523671,3.745,4419.9,4418.8,0.4597]
[1755275523845,3.745,4419.9,4419.6,2.26263179]
[1755275524005,3.745,4419.9,4419.2,2.26280295]
[1755275524346,3.745,4419.9,4418.8,0.4597]
[1755275524347,2.26258915,4419.8,4419.0,2.26294716]
[1755275524944,3.745,4419.9,4418.8,0.4597]
[1755275525240,6.00749539,4419.9,4419.4,0.1128]
[1755275525944,3.745,4419.9,4419.4,0.1128]
[1755275526449,2.26254581,4419.8,4419.4,0.1128]
[1755275526611,2.26262961,4419.7,4419.4,0.1128]
[1755275526813,2.6839,4419.7,4419.4,0.1128]
[1755275527008,0.1128,4419.5,4418.5,0.1128]
[1755275527226,0.1128,4419.1,4418.5,0.1128]
[1755275527539,2.26243722,4420.1,4418.5,0.1128]
[1755275527540,3.744,4419.2,4418.5,0.1128]
[1755275527748,3.744,4419.2,4418.5,2.37599973]
[1755275527949,3.744,4419.2,4418.5,0.1128]
[1755275528139,2.2630177,4418.9,4418.5,0.1128]
[1755275528544,2.2603,4420.6,4418.6,0.4406]
[1755275528711,0.002,4419.9,4419.8,2.26254581]
[1755275529050,0.002,4419.9,4419.8,5.06854581]
[1755275529558,0.002,4419.9,4419.8,8.06854581]
[1755275529707,1e-08,4420.2,4420.1,2.26239225]
[1755275529923,1e-08,4420.6,4420.3,5.26226369]
[1755275530269,1e-08,4420.6,4420.5,2.26218753]
[1755275530469,1e-08,4420.6,4420.5,21.18062353]
[1755275530681,1e-08,4420.6,4420.5,40.27844464]
[1755275530878,0.79952415,4424.4,4421.7,3.0]
[1755275530879,2.638,4424.0,4421.7,3.0]
[1755275531024,2.638,4424.0,4421.6,0.55]
[1755275531025,2.2583,4423.9,4421.9,3.0]
[1755275531224,2.6859,4423.9,4422.1,2.26136903]
[1755275531548,3.743,4423.8,4422.0,0.4406]
[1755275531865,2.6859,4423.7,4421.8,0.679275]
[1755275532073,0.4276,4423.6,4420.8,0.4406]
[1755275532371,0.55,4423.4,4421.2,2.26178092]
[1755275532571,2.26080665,4423.2,4420.8,0.4406]
[1755275532871,2.26155068,4421.8,4420.8,2.26198672]
[1755275533064,2.26136903,4422.1,4419.9,0.679501]
[1755275533266,2.26152245,4421.8,4418.9,0.4406]
[1755275533471,3.55,4421.6,4418.9,0.4406]
[1755275533626,0.55,4421.4,4418.9,0.4406]
[1755275533830,0.55,4421.0,4418.1,0.4406]
[1755275534062,0.55,4421.0,4418.7,2.2631082]
[1755275534063,2.26268583,4419.6,4418.7,2.2631082]
[1755275534268,7.94788285,4420.9,4418.1,0.4406]
[1755275534269,3.742,4419.5,4418.1,0.4406]
[1755275534477,2.26297814,4419.0,4417.5,0.4406]
[1755275534772,2.26307749,4418.8,4417.3,0.001]
[1755275534973,2.2583,4419.3,4417.3,0.001]
[1755275535184,2.26259646,4419.8,4417.5,3.0]
[1755275535387,2.2583,4420.0,4417.7,5.26362039]
[1755275535537,3.742,4420.9,4418.6,15.74182111]
[1755275535746,3.742,4420.9,4420.3,2.26224936]
[1755275537285,3.742,4420.9,4418.9,0.4406]
[1755275537487,2.2583,4421.1,4418.9,0.4406]
[1755275537488,2.2583,4421.1,4419.0,7.2022]
[1755275537693,0.4276,4422.4,4419.2,3.55]
[1755275537987,2.26213024,4420.7,4419.3,0.4406]
[1755275538174,3.741,4420.6,4419.1,3.0]
[1755275538372,6.00314816,4420.6,4419.7,2.26255528]
[1755275538724,6.00314816,4420.6,4418.8,0.4406]
[1755275538725,2.2583,4420.5,4418.9,3.0]
[1755275538990,0.1128,4420.0,4419.5,2.26266984]
[1755275539187,0.1128,4420.0,4419.4,0.1128]
[1755275539188,2.26254776,4419.8,4419.4,0.1128]
[1755275539491,0.1128,4420.0,4419.4,0.1128]
[1755275539492,2.2583,4419.7,4419.4,0.1128]
[1755275540265,0.1128,4420.0,4419.4,0.1128]
[1755275540473,3.741,4419.9,4419.4,0.1128]
[1755275540886,3.741,4419.9,4419.4,2.37553284]
[1755275541102,3.741,4419.9,4419.4,0.1128]
[1755275541319,2.2583,4419.8,4419.4,0.1128]
[1755275541520,2.6859,4419.8,4417.7,0.4406]
[1755275541685,2.6859,4419.8,4418.6,0.1128]
[1755275541686,0.1128,4419.2,4418.6,0.1128]
[1755275541881,6.00394067,4419.1,4418.6,0.1128]
[1755275542082,3.741,4419.0,4418.6,0.1128]
[1755275542302,2.2583,4418.9,4418.6,0.1128]
[1755275542718,2.2583,4418.8,4418.0,2.26346567]
[1755275543018,2.2583,4418.8,4418.1,0.1128]
[1755275543019,0.1128,4418.7,4418.1,0.1128]
[1755275543222,3.8538,4418.7,4418.1,0.1128]
[1755275543580,0.1128,4418.7,4418.6,2.26316027]
[1755275543786,3.741,4419.4,4419.0,2.26291899]
[1755275543981,3.741,4419.5,4418.1,3.4406]
[1755275544332,0.1128,4418.8,4418.0,2.37622058]
[1755275544637,0.1128,4418.8,4417.7,2.26362134]
[1755275544638,3.741,4418.7,4417.8,2.26354957]
[1755275544782,2.26265638,4419.6,4418.7,2.26310905]
[1755275544980,3.741,4419.5,4419.0,0.1128]
[1755275545229,3.741,4419.5,4418.0,0.4406]
[1755275545383,0.1128,4419.3,4418.7,0.1128]
[1755275545580,3.741,4419.2,4418.7,2.37590871]
[1755275545923,2.6859,4419.1,4418.7,0.1128]
[1755275546222,0.1128,4419.0,4418.9,2.26300663]
[1755275546422,3.742,4419.3,4419.0,0.1128]
[1755275546927,3.742,4419.3,4418.7,0.1128]
[1755275546928,2.2583,4419.2,4418.7,0.1128]
[1755275547287,2.2583,4419.1,4418.7,0.1128]
[1755275547740,4.52125541,4419.0,4418.7,0.1128]
[1755275547882,0.1128,4418.9,4418.6,0.001]
[1755275548081,2.3711,4418.9,4418.6,0.001]
[1755275548393,3.8538,4418.9,4418.6,0.001]
[1755275550208,0.1128,4418.9,4418.6,0.001]
[1755275550547,2.2583,4418.8,4418.6,0.001]
[1755275550846,2.6859,4418.8,4418.6,0.001]
[1755275551045,4.94900905,4418.7,4418.6,0.001]
[1755275552002,4.52140905,4418.7,4418.6,0.001]
[1755275552350,4.94900905,4418.7,4418.6,0.001]
[1755275553351,8.69000905,4418.7,4418.6,0.001]
[1755275553558,8.86074364,4418.7,4418.6,0.001]
[1755275553718,9.41074364,4418.7,4418.6,0.001]
[1755275554681,6.17003459,4418.7,4418.6,0.001]
[1755275554968,3.8538,4418.7,4418.6,2.26416027]
[1755275555560,3.8538,4418.7,4418.6,2.70476027]
[1755275555773,2.2583,4420.0,4418.6,0.4416]
[1755275556061,0.1128,4419.6,4419.4,2.26270063]
[1755275556298,0.1128,4419.6,4419.5,2.2626994]
[1755275556429,2.3784,4420.8,4420.0,2.26244343]
[1755275556430,0.1128,4420.2,4420.0,2.26244343]
[1755275556759,0.1128,4420.2,4419.5,2.8147534]
[1755275556760,2.26276171,4419.4,4418.6,0.001]
[1755275556923,6.1194,4420.1,4418.6,0.001]
[1755275556924,3.741,4419.3,4418.6,0.001]
[1755275557121,0.1128,4418.8,4418.6,0.001]
[1755275557458,3.741,4418.7,4418.6,2.26416027]
[1755275557669,3.741,4418.7,4418.6,0.001]
[1755275557851,6.1194,4418.7,4418.6,0.001]
[1755275558238,8.38250905,4418.7,4418.6,0.001]
[1755275558578,8.81010905,4418.7,4418.6,0.001]
[1755275558738,9.36010905,4418.7,4418.6,0.001]
[1755275560275,9.36010905,4418.7,4418.6,1e-08]
[1755275560638,5.61910905,4418.7,4418.6,1e-08]
[1755275560825,9.47290905,4418.7,4418.6,1e-08]
[1755275562069,8.49530905,4418.7,4418.6,1e-08]
[1755275562238,12.47290905,4418.7,4418.6,1e-08]
[1755275562442,2.26362134,4417.7,4417.6,0.001]
[1755275562631,6.11742134,4417.7,4417.6,0.001]
[1755275562827,8.92342134,4417.7,4417.6,0.001]
[1755275563141,0.55,4417.4,4417.3,0.001]
[1755275563341,2.81398007,4417.0,4416.9,0.001]
[1755275563566,6.55498007,4417.0,4416.9,0.001]
[1755275563768,2.37678007,4417.0,4416.9,0.001]
[1755275563979,6.11778007,4417.0,4416.9,0.001]
[1755275564738,9.47378007,4417.0,4416.9,1e-08]
[1755275564983,9.5887336,4417.0,4416.9,1e-08]
[1755275565542,9.1611336,4417.0,4416.9,1e-08]
[1755275565743,8.6111336,4417.0,4416.9,1e-08]
[1755275565993,6.2327336,4417.0,4416.9,1e-08]
[1755275566487,2.4917336,4417.0,4416.9,1e-08]
[1755275566650,3.8528,4417.0,4416.9,0.43930001]
[1755275566851,3.8528,4417.0,4416.9,1e-08]
[1755275567070,6.11678007,4417.0,4416.9,1e-08]
[1755275567680,0.1128,4417.0,4416.9,1e-08]
[1755275567881,3.8538,4417.0,4416.9,0.43930001]
[1755275568190,3.8538,4417.0,4416.9,1e-08]
[1755275568352,6.11778007,4417.0,4416.9,1e-08]
[1755275568966,8.49618007,4417.0,4416.9,1e-08]
[1755275569187,9.47378007,4417.0,4416.9,1e-08]
[1755275569350,9.04618007,4417.0,4416.9,1e-08]
[1755275569553,8.49618007,4417.0,4416.9,1e-08]
[1755275570082,11.12898007,4417.0,4416.9,1e-08]
[1755275570285,11.55658007,4417.0,4416.9,1e-08]
[1755275570444,2.26439019,4416.2,4416.1,0.01304798]
[1755275570649,6.00539019,4416.2,4416.1,0.01304798]
[1755275570953,6.11899019,4416.2,4416.1,0.45234798]
[1755275571148,6.11899019,4416.2,4416.1,0.01304798]
[1755275571698,3.741,4416.2,4416.1,2.72724798]
[1755275571899,3.741,4416.2,4416.1,4.99168945]
[1755275572083,3.741,4416.2,4416.1,2.72724798]
[1755275572405,3.741,4416.2,4416.1,4.99167562]
[1755275572897,3.741,4416.2,4416.1,4.99168945]
[1755275573060,0.1136,4416.6,4416.5,2.26423638]
[1755275573257,3.8546,4416.6,4416.5,2.26423638]
[1755275573461,5.435,4417.7,4416.5,2.7142]
[1755275573703,0.1128,4417.5,4416.6,0.4393]
[1755275573905,2.26407453,4416.9,4416.6,0.4393]
[1755275574080,0.1128,4417.0,4416.7,0.4393]
[1755275574277,3.74,4416.8,4416.5,0.1136]
[1755275574592,3.74,4416.7,4416.5,0.1136]
[1755275575173,3.74,4416.7,4416.1,0.45234798]
[1755275575378,0.1136,4416.6,4416.1,0.45234798]
[1755275575595,0.1136,4416.6,4416.2,0.4393]
[1755275575989,3.74,4416.7,4416.4,2.26428422]
[1755275576190,6.00413897,4416.7,4416.4,0.4393]
[1755275576369,3.74,4416.7,4416.4,0.4393]
[1755275576804,3.74,4416.7,4416.5,0.4393]
[1755275577010,3.74,4416.7,4416.6,4.97838511]
[1755275577208,3.74,4416.7,4416.6,5.09198511]
[1755275578006,3.74,4416.9,4416.8,2.20750871]
[1755275578211,3.74,4416.9,4416.8,2.64680871]
[1755275578566,3.74,4416.9,4416.8,4.92170871]
[1755275578767,0.1128,4417.4,4417.0,2.26394207]
[1755275578990,0.1128,4417.4,4417.2,2.26387756]
[1755275579187,0.1128,4417.4,4417.3,4.97802631]
[1755275579393,0.002,4417.5,4417.4,2.26377507]
[1755275579626,0.002,4417.5,4417.4,4.97797507]
[1755275580142,0.002,4418.7,4418.6,2.26316027]
[1755275580288,0.002,4418.7,4418.5,2.26320865]
[1755275580627,0.002,4418.7,4417.7,3.0]
[1755275580941,0.002,4418.7,4417.6,2.7142]
[1755275580942,0.002,4418.7,4418.1,2.2634164]
[1755275581146,0.002,4418.7,4418.6,2.26316027]
[1755275581450,0.02,4419.4,4419.3,2.2628018]
[1755275581735,1e-08,4419.4,4419.3,2.2628018]
[1755275581937,0.002,4420.1,4420.0,2.26244343]
[1755275582137,0.002,4420.1,4420.0,5.26244343]
[1755275582338,0.002,4420.1,4420.0,7.97664343]
[1755275582538,0.02,4420.4,4420.3,2.26228988]
[1755275582894,0.02,4420.4,4420.3,4.97648988]
[1755275583700,0.02,4420.4,4420.3,2.70158988]
[1755275583906,0.02,4420.4,4420.3,4.99911277]
[1755275584197,0.02,4420.4,4420.3,4.97648988]
[1755275584393,0.02,4420.4,4420.3,2.70158988]
[1755275584590,0.02,4420.4,4419.5,0.4393]
[1755275584894,0.02,4420.4,4419.5,2.2626899]
[1755275585103,0.02,4420.4,4419.9,2.26245338]
[1755275585321,0.02,4420.4,4419.5,0.4393]
[1755275585529,0.02,4420.4,4420.2,2.2623352]
[1755275585732,0.02,4420.4,4419.5,0.4393]
[1755275585934,0.02,4420.4,4419.8,2.26254163]
[1755275586141,0.02,4420.4,4419.9,2.26248947]
[1755275586326,0.02,4420.4,4419.5,0.4393]
[1755275586790,0.02,4420.4,4419.7,2.26255136]
[1755275586994,0.02,4420.4,4419.6,2.2626432]
[1755275587196,0.02,4420.4,4418.9,3.0]
[1755275587435,0.02,4420.4,4419.9,2.26249337]
[1755275587941,0.02,4420.4,4419.5,0.4601]
[1755275588292,0.02,4420.4,4419.6,2.2626482]
[1755275588498,4.67056143,4420.4,4419.0,2.26292378]
[1755275588718,2.26229005,4420.3,4418.8,0.4601]
[1755275589027,2.4083,4420.4,4418.9,2.823]
[1755275589028,3.756,4420.4,4418.9,2.823]
[1755275589223,3.756,4420.4,4418.4,0.4601]
[1755275589224,2.26259433,4419.8,4418.4,0.4601]
[1755275589423,0.1128,4419.7,4419.0,0.1128]
[1755275589695,0.1128,4420.1,4419.5,0.1128]
[1755275590094,3.756,4420.4,4419.1,0.4601]
[1755275590297,2.26244133,4420.1,4419.8,0.1128]
[1755275590498,2.26249557,4419.9,4418.5,2.3629]
[1755275590698,2.3883,4420.3,4418.5,2.3629]
[1755275590699,2.3883,4420.3,4418.8,2.26300746]
[1755275591040,2.26273242,4419.5,4418.7,0.4601]
[1755275591223,3.756,4420.4,4418.8,2.84563057]
[1755275591420,0.1128,4420.2,4419.4,2.26275059]
[1755275591646,0.1128,4420.2,4419.6,0.1128]
[1755275591847,2.26247025,4420.0,4419.6,0.1128]
[1755275592149,2.26247025,4420.0,4419.2,2.72292841]
[1755275592150,2.26269789,4419.6,4419.0,0.1128]
[1755275592355,2.3883,4419.9,4418.0,2.3629]
[1755275592356,3.735,4419.5,4418.0,3.0]
[1755275592556,3.735,4419.5,4419.0,0.1128]